Cogmind - Beta 10.2 @@@ ROGUE MODE // 2020.11.03 @ 21:00:47 Player: Whismirk Result: Self-destructed Performance ------------- Evolutions (1) 500 Regions Visited (2) 400 Robots Destroyed (9) 45 Value Destroyed (227) 227 Prototype IDs (2) 40 Alien Tech Used (0) 0 Bonus (0) 0 TOTAL SCORE: 1212 Bonus ------- None Cogmind --------- Core Integrity 261/400 Matter 114/300 Energy 265/265 System Corruption 0% Temperature Cool (9) Movement Walking (120) Location -9/Materials Parts ------- > --- POWER (1) -------- Improved Ion Engine > --- PROPULSION (2) --- Aluminum Leg Aluminum Leg > --- UTILITY (4) ------ Heat Sink Small Storage Unit > --- WEAPON (2) ------- (None) > --- INVENTORY (6) ---- Aluminum Leg Peak State ------------ > --- POWER ------------ Improved Ion Engine > --- PROPULSION ------- Aluminum Leg Aluminum Leg > --- UTILITY ---------- Heat Sink Small Storage Unit > --- WEAPON ----------- Beam Rifle Light Assault Rifle > --- INVENTORY -------- (None) [Rating: 9] Favorites ----------- Power Ion Engine Engine Ion Engine Propulsion Aluminum Leg Leg Aluminum Leg Utility Heat Sink Device Heat Sink Storage Small Storage Unit Processor Signal Interpreter Weapon Assault Rifle Energy Gun Beam Rifle Ballistic Gun Assault Rifle Launcher Grenade Launcher Special Weapon Mining Laser Build | -11 -10 -9 ------- Run | Scr Mat Mat Slots Evolved 2 | . . 2 Power . | . . . Propulsion . | . . . Utility 2 | . . 2 Weapon . | . . . Parts Attached 25 | 5 5 15 Power 4 | 1 1 2 Engine 4 | 1 1 2 Core . | . . . Reactor . | . . . Propulsion 10 | 2 1 7 Treads . | . . . Leg 10 | 2 1 7 Wheel . | . . . Hover . | . . . Flight . | . . . Utility 3 | . 1 2 Device 1 | . . 1 Storage 1 | . . 1 Processor 1 | . 1 . Hackware . | . . . Protection . | . . . Artifact . | . . . Weapon 8 | 2 2 4 Energy Gun 2 | . . 2 Energy Cannon . | . . . Ballistic Gun 4 | 2 1 1 Ballistic Cannon . | . . . Launcher 1 | . 1 . Special Weapon 1 | . . 1 Impact Weapon . | . . . Slashing Weapon . | . . . Piercing Weapon . | . . . Special Melee Weapon . | . . . Unidentified Prototypes . | . . . Parts Lost 6 | . 2 4 Power 1 | . . 1 Propulsion . | . . . Utility . | . . . Weapon 5 | . 2 3 Highest Loss Streak 2 | . 1 2 Average Slot Usage (%) 68 | . 75 62 Engine 12 | . 14 10 Leg 24 | . 28 22 Device 3 | . . 6 Storage 3 | . . 6 Processor 2 | . 4 1 Energy Gun 5 | . . 10 Ballistic Gun 11 | . 18 4 Launcher 4 | . 9 . Naked Turns 2 | . . 2 Heaviest Build 16 | 8 10 16 Greatest Support 20 | 20 20 20 Greatest Overweight (x) 1 | 1 . 1 Average Overweight (x) . | . . . Largest Inventory Capacity 6 | 4 4 6 Average Capacity 4 | 4 4 5 Most Carried 4 | 2 4 4 Average Carried 1 | 1 2 1 Final Capacity 6 | 4 4 6 Final Carried 2 | 1 2 1 Class Distribution -------------------- 83% | Mutant 16% | Scavenger-Mutant Dominant Class ---------------- Mutant | -10/Materials Mutant | -9/Materials Resources | -11 -10 -9 ----------- Run | Scr Mat Mat Matter Collected 341 | 204 61 76 Remotely . | . . . Salvage Created 205 | . 99 106 Parts 21 | . 10 11 Haulers Intercepted . | . . . Recyclers Shooed . | . . . Parts Field Recycled . | . . . Retrieved Matter . | . . . Parts Self-Destructed . | . . . Prevented . | . . . Kills | -11 -10 -9 ------- Run | Scr Mat Mat Combat Hostiles Destroyed 8 | . 5 3 Guns 4 | . 2 2 Cannons 1 | . . 1 AOE 3 | . 3 . Classes Destroyed 4 | . 3 1 Watcher 1 | . 1 . Swarmer 3 | . 3 . Grunt 4 | . 2 2 Sentry 1 | . . 1 Best Kill Streak 4 | . 4 2 Combat Bots Only 4 | . 4 2 Max Kills in Single Turn 2 | . 2 1 Gunslinging . | . . . Exploded 2 | . 2 . Melee . | . . . Uniques/NPCs Destroyed . | . . . Combat | -11 -10 -9 -------- Run | Scr Mat Mat Damage Taken 941 | . 465 476 Core 218 | . 79 139 Absorbed by Shields . | . . . Core Remaining (%) 84 | 100 68 . Volleys Fired 35 | . 20 15 Largest 2 | . 2 2 Hottest 156 | . 50 156 Shots Fired 45 | . 25 20 Gun 40 | . 21 19 Cannon . | . . . Launcher 4 | . 4 . Special 1 | . . 1 Kinetic 27 | . 21 6 Thermal 14 | . . 14 Explosive 4 | . 4 . Electromagnetic . | . . . Robot Hit Streak 10 | . 3 10 Robot Miss Streak 3 | . 3 3 Penetration Max . | . . . Secondary Targets . | . . . Shots Hit Robots 25 | . 11 14 Core Hits 12 | . 8 4 Critical Hits 1 | . . 1 Critical Kills 1 | . . 1 Critical Parts Destroyed . | . . . Melee Attacks . | . . . Impact . | . . . Slashing . | . . . Piercing . | . . . Sneak Attacks . | . . . Combat Hostiles . | . . . Follow-up Attacks . | . . . Damage Inflicted 485 | . 314 171 Guns 287 | . 140 147 Cannons . | . . . Explosions 174 | . 174 . Melee . | . . . Ramming . | . . . Kinetic 156 | . 140 16 Thermal 155 | . . 155 Explosive 174 | . 174 . Electromagnetic . | . . . Impact . | . . . Slashing . | . . . Piercing . | . . . Highest Corruption . | . . . Average Corruption . | . . . Corruption Purged . | . . . Overload Shots . | . . . Overflow Damage . | . . . Projectiles . | . . . Explosions . | . . . Melee . | . . . Knockbacks . | . . . Impact . | . . . Kinetic . | . . . Secondary . | . . . Self-Inflicted Damage 19 | . 19 . Shots 1 | . 1 . Rammed . | . . . Targets Rammed . | . . . Kicked . | . . . Crushed . | . . . Highest Temperature 24 | . 12 24 Average Temperature 8 | . 12 8 Received Heat Transfer 396 | . 192 204 Siege Activations . | . . . Robots Corrupted . | . . . Combat Hostiles . | . . . Parts Fried . | . . . Impact Corruptions . | . . . Robots Melted . | . . . Combat Hostiles . | . . . Parts Melted . | . . . Heat Transferred 360 | . . 360 Parts Sabotaged . | . . . Parts Stolen . | . . . Parts Stripped . | . . . Power Chain Reactions . | . . . Missiles Intercepted . | . . . Alert | -11 -10 -9 ------- Run | Scr Mat Mat Peak Influence 162 | . 147 162 Initial 53 | . . 53 Average 86 | . 94 103 Maximum Alert Level . | . . . Low Security (%) 100 | 100 100 100 Level 1 . | . . . Level 2 . | . . . Level 3 . | . . . Level 4 . | . . . Level 5 . | . . . High Security . | . . . Max Security . | . . . Squads Dispatched 4 | . 1 3 Investigation 2 | . . 2 Extermination . | . . . Reinforcement 2 | . 1 1 Assault . | . . . Garrison . | . . . Intercept . | . . . Construction Impeded . | . . . Haulers Reinforced . | . . . Stealth | -11 -10 -9 --------- Run | Scr Mat Mat Distress Signals . | . . . Communications Jammed . | . . . Distress Signals . | . . . Times Spotted 19 | . 10 9 Peak Tracking Total 6 | . 4 6 Tactical Retreats . | . . . Traps | -11 -10 -9 ------- Run | Scr Mat Mat Traps Triggered 3 | . . 3 Indirectly . | . . . Trap Hack Attempts . | . . . Triggered . | . . . Disarmed . | . . . Reprogrammed . | . . . Reused . | . . . Traps Extracted . | . . . Installed . | . . . Triggered . | . . . Machines | -11 -10 -9 ---------- Run | Scr Mat Mat Machines Disabled . | . . . Max in Single Turn . | . . . Machines Sabotaged . | . . . Garrisons Compromised . | . . . Overloaded Fab Kills . | . . . Fab Network Shutdowns . | . . . Hacking | -11 -10 -9 --------- Run | Scr Mat Mat Machines Accessed 3 | . 1 2 Terminals 3 | . 1 2 Fabricators . | . . . Repair Stations . | . . . Recycling Units . | . . . Scanalyzers . | . . . Garrison Access . | . . . Total Hacks 10 | . 4 6 Successful 6 | . 2 4 Failed 4 | . 2 2 Catastrophic . | . . . Database Lockouts . | . . . Manual . | . . . Terminals 10 | . 4 6 Fabricators . | . . . Repair Stations . | . . . Recycling Units . | . . . Scanalyzers . | . . . Garrison Access . | . . . Terminal Hacks 6 | . 2 4 Record 3 | . . 3 Robot Analysis 1 | . . 1 Prototype ID Bank 1 | . 1 . Maintenance Status 1 | . 1 . Fabricator Hacks . | . . . Repair Station Hacks . | . . . Recycling Unit Hacks . | . . . Scanalyzer . | . . . Garrison Access Hacks . | . . . Unauthorized Hacks . | . . . Terminals . | . . . Fabricators . | . . . Repair Stations . | . . . Recycling Units . | . . . Scanalyzers . | . . . Garrison Access . | . . . Data Cores Recovered . | . . . Used . | . . . Hacking Detections 3 | . 1 2 Full Trace Events 2 | . . 2 Feedback Events . | . . . Feedback Blocked . | . . . Robot Schematics Acquired . | . . . Robots Built . | . . . Matter . | . . . Time . | . . . Total Robot Build Rating . | . . . Part Schematics Acquired . | . . . Parts Built . | . . . Matter . | . . . Time . | . . . Total Part Build Rating . | . . . Parts Repaired . | . . . Time . | . . . Parts Recycled . | . . . Recycled Matter . | . . . Retrieved Matter . | . . . Retrieved Components . | . . . Parts Scanalyzed . | . . . Part Schematics Acquired . | . . . Parts Damaged . | . . . Bothacking | -11 -10 -9 ------------ Run | Scr Mat Mat Used RIF Installer . | . . . Robots Hacked . | . . . Non-combat . | . . . Combat . | . . . Robot Hacks Applied . | . . . Relay Couplers Released . | . . . Robots Rewired . | . . . Allies Hacked . | . . . Hacks Repelled . | . . . Allies | -11 -10 -9 -------- Run | Scr Mat Mat Total Allies . | . . . Largest Group . | . . . Highest-Rated Group . | . . . Highest-Rated Ally . | . . . Total Orders . | . . . Ally Attacks . | . . . Total Damage . | . . . Kills . | . . . Allies Corrupted . | . . . Allies Melted . | . . . Intel | -11 -10 -9 ------- Run | Scr Mat Mat Robot Analysis Total 1 | . . 1 Derelict Logs Recovered . | . . . Drone Launches . | . . . Drone Recoveries . | . . . Exploration | -11 -10 -9 ------------- Run | Scr Mat Mat Turns Passed 530 | 68 225 237 Spaces Moved 330 | 52 141 137 Core 8 | 7 . 1 Treads . | . . . Legs 322 | 45 141 136 Wheels . | . . . Hover . | . . . Flight . | . . . Fastest Speed 50 | 50 120 100 Average Speed 118 | 111 120 120 Slowest Speed 150 | 120 120 150 Overloaded Moves . | . . . Propulsion Burnouts . | . . . Robots Hopped . | . . . Cave-ins Triggered . | . . . Exploration Rate (%) 16 | 4 33 12 Regions Visited 2 Branch Regions . Pre-discovered Areas . | . . . Known Exits Taken 1 | . 1 . Unknown Exits Taken 1 | 1 . . Scrap Searched . | . . . Spaces Dug . | . . . Terrain Destroyed 39 | . 39 . Melee . | . . . Projectile . | . . . AOE 39 | . 39 . Terrain Rammed . | . . . Walls Destroyed . | . . . Machines Disabled . | . . . Actions | -11 -10 -9 --------- Run | Scr Mat Mat Total 421 | 62 171 188 Wait 3 | . 1 2 Move 328 | 51 140 137 Hop . | . . . Pick Up 24 | 6 4 14 Fast Attach . | . . . Attach 18 | 5 2 11 Detach . | . . . Swap 7 | . 3 4 Drop 6 | . 1 5 Fire 35 | . 20 15 Melee . | . . . Ram . | . . . Kick . | . . . Crush . | . . . Escape Stasis . | . . . Rewire . | . . . Trap . | . . . Miscellaneous . | . . . Route ------- -11/Scrapyard -10/Materials -9/Materials History --------- Turn | Location | Event 4 | -11/Scrapyard | Discovered new exit (range 16) 69 | -11/Scrapyard | Entered Materials 291 | -10/Materials | Discovered new exit (range 4) 293 | -10/Materials | Identified exit to Materials 294 | -10/Materials | Entered another Materials area 294 | -9/Materials | Evolved 2 slots: Utility x2 317 | -9/Materials | Build established: Mutant 531 | -9/Materials | Self-destructed Last Messages --------------- 00434_ K-01 Serf collects debris. 00435_ R-06 Scavenger collects Heat Sink. 00437_ Acquired Aluminum Leg. 00437_ K-01 Serf collects debris. 00439_ R-06 Scavenger collects Sml. Laser. 00442_ R-06 Scavenger collects Aluminum Leg. 00442_ K-01 Serf collects debris. 00446_ R-06 Scavenger collects Heat Sink. 00448_ K-01 Serf collects debris. 00457_ Triggered Blade Trap. 00457_ Massive razor-sharp blades shoot up from within the floor. 00457_ Aluminum Leg severed. 00473_ U-05 Engineer lays Concrete. 00509_ O-16 Technician: "IFF HANDSHAKE FAILED. SECURING TERMINAL." 00515_ U-05 Engineer lays Concrete. 00516_ ALERT: Hostiles spotted, dispatching reinforcements to Terminal M009. 00517_ Beam Rifle destroyed. 00517_ U-05 Engineer lays Concrete. 00524_ Sml. Laser destroyed. Map ----- +----------------------------------------------------+ | ?????????????????????????????? | | ?????????????????????????????? | | ?????????????????????????????? | | ?????????????????????????????? | | ?????????????? ????????????? | | ?????????? T ????????????? | | ?????????? ????????????? | | ?????????? #???????????? | | ?????????# +???????????? | | ?????????# #???????????? | | ?????????# #???????????? | | ?????????# """ #???????????? | | ?????????# """ #???????????? | | ?????????# """ #???????????? | | ?????????# #???????????? | | ?????????# #######?????? | | ???????### ^""" #?????? | | ????#### """ #?????? | | ????# """ #?????? | | ????# #?????? | | ????# g ###?????? | | ????#g#########+#### #???????? | | ????#g#??????? ??# #???????? | | ????#g#??????? ??# #???????? | | ????# #?????? ?# #???????? | | ????#@#?????? ?# #???????? | | ????#Y#?????"" """ # #???????? | | ????# #?????"" """ # #???????? | | ???? ????""" """ # #???????? | | ???? ????? # #???????? | | ???? ??????##???## #???????? | | ???? ????????????# #???????? | | ??? ???????????# #???????? | | ???##o##????????#### ##??????? | | ????? ???######## ######## | | ????? ???# | | ????? ???# | | ????? ???# | | ????? ???# # #####+## | | ????? ???#! !#######?? ? | | ?????#???#! !#?????? ?"""? | | ?????????##!!!!##?????# ?""""" | | ??????????######?????????""""" | | ???????????????????????? | | ???????????????????????? | | ???????????????????????? "Y | | ?????????????????????????? ?? | | ?????????????????????????????? | | ?????????????????????????????? | | ?????????????????????????????? | +----------------------------------------------------+ Best States ------------- Heat Dissipation 38 Energy Generation 12 Energy Capacity 265 Matter Stores 254 Matter Capacity 300 Sight Range 16 Terrain Scan Density 10 Evasion (%) 40 Item Schematics ----------------- None Robot Schematics ------------------ None Fabricated ------------ Nothing Alien Tech Used ----------------- None Achievements -------------- None Challenges ------------ None Game ------ Seed ZioniteWeightEdition Manual? 0 Play Time 00:11:31 Cumulative 4.0 hours Start 2020.11.03 @ 20:19:26 End 2020.11.03 @ 21:00:47 Sessions 1 Manual Loads 0 Difficulty Rogue Special Mode None Game No. 7 Rogue 7 Adventurer 0 Explorer 0 Win Type - Total 0 Types 0/0/0/0/0/0/0/0/0 Lore% 12 Gallery% 10 Achievement% 5 Wizard Run 0 Options --------- ASCII 0 Keyboard 0 Movement Numpad Keybinds 0 Fullscreen 1 Font 18/SmallcapsGlow Map View 76x50 Tactical HUD 1 Map Filters NONE Filters NONE Steam 1 RUN: 7436162b-8917-4690-9e36-1123b605fa73